fUSD/lending_fUSD_20260404
["ID","MTS","AMOUNT","RATE_DAILY","PERIOD"]
[419727510,1775340642978,-2200585.9767585,0.00013598,2]
[419727518,1775340643519,-731.88634346,0.00013598,2]
[419727519,1775340643614,-381.03332569,0.00013598,2]
[419727520,1775340643626,-4781.22430502,0.00013598,2]
[419727521,1775340643637,-1098.0776914,0.00013598,2]
[419727522,1775340644037,-1054.0,0.00013598,2]
[419727523,1775340644053,-4998.41366322,0.00013598,2]
[419727525,1775340645949,-1788.37001773,0.00013598,2]
[419727555,1775341408098,6688.79534436,0.000126,10]
[419727556,1775341532029,-13661.0,0.000101,2]
[419727557,1775341532050,-1200.0,0.00010199,2]
[419727558,1775341532071,-1139.0,0.000103,2]
[419727559,1775341534199,324.73,5.807e-05,2]
[419727560,1775341534387,324.73,6.113e-05,2]
[419727561,1775341534585,324.73,6.418e-05,2]
[419727562,1775341534783,324.73,6.724e-05,2]
[419727563,1775341535022,324.73,7.03e-05,2]
[419727564,1775341535160,324.73,7.335e-05,2]
[419727565,1775341535554,324.73,7.641e-05,2]
[419727566,1775341535753,324.73,7.947e-05,2]
[419727567,1775341535955,324.73,8.252e-05,2]
[419727568,1775341536153,324.73,8.558e-05,2]
[419727569,1775341536371,324.73,8.864e-05,2]
[419727570,1775341536563,324.73,9.169e-05,2]
[419727571,1775341536786,324.73,9.475e-05,2]
[419727572,1775341536957,324.73,9.781e-05,2]
[419727573,1775341620817,-324.73,0.00010086,2]
[419727574,1775341620839,-186.31196912,0.00010199,2]
[419727575,1775341620860,-2488.95803088,0.000103,2]
[419727577,1775341688309,2888.176223,7.945e-05,2]
[419727579,1775341831603,-324.73,0.00010392,2]
[419727580,1775341831613,-1200.0,0.00010499,2]
[419727581,1775341831622,-5533.0,0.000105,3]
[419727582,1775341831632,-324.73,0.00010697,2]
[419727583,1775341831641,-5533.0,0.00011,5]
[419727584,1775341831651,-324.73,0.00011003,2]
[419727585,1775341831661,-500.0,0.00011024,2]
[419727586,1775341831671,-500.0,0.00011137,2]
[419727587,1775341831680,-415.31553778,0.00011199,2]
[419727588,1775341831689,-150.0,0.00011199,2]
[419727589,1775341831699,-4822.17,0.000112,2]
[419727590,1775341831709,-299.99,0.000112,2]
[419727591,1775341831718,-4999.99,0.000112,2]
[419727592,1775341831727,-324.73,0.00011309,2]
[419727593,1775341831737,-823.0,0.00011538,2]
[419727594,1775341831747,-152.0,0.00011538,2]
[419727595,1775341831756,-1680.0,0.00011549,2]
[419727596,1775341831766,-830.0,0.00011566,2]
[419727597,1775341831775,-361.0,0.00011566,2]
[419727598,1775341831784,-1751.82507383,0.00011613,2]
[419727599,1775341831794,-1103.7299612,0.00011613,2]
[419727600,1775341831803,-3632.14400173,0.00011613,2]
[419727601,1775341831813,-324.73,0.00011614,2]
[419727602,1775341831822,-1837.51,0.0001169,2]
[419727603,1775341831831,-150.99,0.00012126,2]
[419727604,1775341831840,-7351.94,0.00012126,2]
[419727605,1775341831850,-9999.99,0.00012126,2]
[419727606,1775341831860,-999.99,0.00012126,2]
[419727607,1775341831870,-420.07,0.00012247,2]
[419727608,1775341831879,-255.0,0.00012252,2]
[419727610,1775341831889,-250.0,0.00012264,2]
[419727612,1775341831899,-3946.3573,0.00012399,2]
[419727614,1775341831908,-2000.0,0.00012446,2]
[419727616,1775341831917,-1852.42,0.00012446,2]
[419727617,1775341831927,-1000.0,0.00012499,2]
[419727619,1775341831936,-500.0,0.00012565,2]
[419727622,1775341831946,-15100.21797164,0.000126,10]
[419727623,1775341831956,-800.0,0.000126,4]
[419727625,1775341831967,-300.0,0.000126,4]
[419727627,1775341831976,-1600.0,0.000127,4]
[419727629,1775341831986,-600.0,0.000127,4]
[419727631,1775341831995,-500.0,0.000127,2]
[419727633,1775341832005,-2351.0,0.00012704,2]
[419727635,1775341832015,-2400.0,0.000128,4]
[419727637,1775341832024,-900.0,0.000128,4]
[419727639,1775341832034,-427.01,0.00012842,2]
[419727642,1775341832044,-3300.0,0.000129,4]
[419727650,1775341832313,-1300.0,0.000129,4]
[419727651,1775341832323,-411.03320816,0.00012974,2]
[419727652,1775341832333,-509.0,0.00013111,2]
[419727653,1775341832342,-427.01556135,0.00013113,2]
[419727654,1775341832351,-2734.0978,0.00013214,2]
[419727655,1775341832361,-36824.60995712,0.00013305,2]
[419727656,1775341832370,-200.0,0.00013306,2]
[419727657,1775341832379,-151.0,0.00013306,2]
[419727658,1775341832389,-153.43679859,0.00013306,2]
[419727659,1775341832399,-151.0,0.00013306,2]
[419727660,1775341832408,-151.0,0.00013306,2]
[419727661,1775341832418,-151.0,0.00013306,2]
[419727662,1775341832427,-151.0,0.00013306,2]
[419727663,1775341832437,-273.4396,0.00013314,2]
[419727664,1775341832447,-2500.0,0.00013314,2]
[419727665,1775341832456,-7683.41588999,0.00013314,2]
[419727666,1775341832466,-3039.0,0.00013314,2]
[419727667,1775341832475,-3039.0,0.00013314,2]
[419727668,1775341832486,-3039.0,0.00013314,2]
[419727669,1775341832495,-3039.0,0.00013314,2]
[419727670,1775341832504,-3039.0,0.00013314,2]
[419727671,1775341832514,-3039.0,0.00013314,2]
[419727672,1775341832523,-3039.0,0.00013314,2]
[419727673,1775341832533,-3039.0,0.00013314,2]
[419727674,1775341832542,-3039.0,0.00013314,2]
[419727675,1775341832552,-3039.0,0.00013314,2]
[419727676,1775341832561,-3039.0,0.00013314,2]
[419727677,1775341832570,-3039.0,0.00013314,2]
[419727678,1775341832580,-3039.0,0.00013314,2]
[419727679,1775341832589,-3039.0,0.00013314,2]
[419727680,1775341832598,-3039.0,0.00013314,2]
[419727681,1775341832607,-3039.0,0.00013314,2]
[419727682,1775341832616,-3039.0,0.00013314,2]
[419727683,1775341832626,-3039.0,0.00013314,2]
[419727684,1775341832635,-3039.0,0.00013314,2]
[419727685,1775341832644,-3039.0,0.00013314,2]
[419727686,1775341832653,-3039.0,0.00013314,2]
[419727687,1775341832662,-3039.0,0.00013314,2]
[419727688,1775341832672,-561.15928237,0.00013314,2]
[419727689,1775341832681,-3039.0,0.00013314,2]
[419727690,1775341832690,-3044.0,0.00013314,2]
[419727691,1775341832699,-406.0,0.0001337,2]
[419727692,1775341832709,-289.10799454,0.0001337,2]
[419727693,1775341832719,-150.0,0.00013373,2]
[419727694,1775341832728,-150.0,0.00013373,2]
[419727695,1775341832737,-208.53366498,0.00013373,2]
[419727696,1775341832746,-1192.29941814,0.00013404,2]
[419727697,1775341832755,-1192.29941814,0.00013404,2]
[419727698,1775341832764,-433.0,0.00013405,2]
[419727699,1775341832773,-151.0,0.00013411,2]
[419727700,1775341832783,-151.0,0.00013411,2]
[419727701,1775341832792,-500.0,0.00013412,2]
[419727702,1775341832802,-500.0,0.00013412,2]
[419727703,1775341832811,-500.0,0.00013412,2]
[419727704,1775341832819,-500.0,0.00013412,2]
[419727705,1775341832829,-500.0,0.00013412,2]
[419727706,1775341832838,-500.0,0.00013412,2]
[419727707,1775341832847,-500.0,0.00013412,2]
[419727708,1775341832857,-500.0,0.00013412,2]
[419727709,1775341832866,-500.0,0.00013412,2]
[419727710,1775341832876,-500.0,0.00013412,2]
[419727711,1775341832885,-500.0,0.00013412,2]
[419727712,1775341832894,-500.0,0.00013412,2]
[419727713,1775341832903,-500.0,0.00013412,2]
[419727714,1775341832912,-500.0,0.00013412,2]
[419727715,1775341832922,-500.0,0.00013412,2]
[419727716,1775341832931,-500.0,0.00013412,2]
[419727717,1775341832940,-500.0,0.00013412,2]
[419727718,1775341832950,-500.0,0.00013412,2]
[419727719,1775341832960,-500.0,0.00013412,2]
[419727720,1775341832969,-500.0,0.00013412,2]
[419727721,1775341832978,-500.0,0.00013412,2]
[419727722,1775341832987,-500.0,0.00013412,2]
[419727723,1775341832996,-500.0,0.00013412,2]
[419727724,1775341833006,-500.0,0.00013412,2]
[419727725,1775341833015,-500.0,0.00013412,2]
[419727726,1775341833024,-500.0,0.00013412,2]
[419727727,1775341833034,-475.49248236,0.00013412,2]
[419727728,1775341833044,-500.0,0.00013412,2]
[419727729,1775341833053,-500.0,0.00013412,2]
[419727730,1775341833062,-500.0,0.00013412,2]
[419727731,1775341833072,-500.0,0.00013412,2]
[419727732,1775341833081,-500.0,0.00013412,2]
[419727733,1775341833091,-500.0,0.00013412,2]
[419727734,1775341833100,-500.0,0.00013412,2]
[419727735,1775341833109,-500.0,0.00013412,2]
[419727736,1775341833119,-500.0,0.00013412,2]
[419727737,1775341833128,-500.0,0.00013412,2]
[419727738,1775341833137,-500.0,0.00013412,2]
[419727739,1775341833146,-350.0,0.00013412,2]
[419727740,1775341833156,-500.0,0.00013413,2]
[419727741,1775341833165,-305.97011994,0.00013413,2]
[419727742,1775341833175,-500.0,0.00013413,2]
[419727743,1775341833184,-500.0,0.00013413,2]
[419727744,1775341833194,-500.0,0.00013413,2]
[419727745,1775341833202,-500.0,0.00013413,2]
[419727746,1775341833211,-500.0,0.00013413,2]
[419727747,1775341833221,-212.4386147,0.00013413,2]
[419727748,1775341833230,-500.0,0.00013413,2]
[419727749,1775341833239,-196.03372093,0.00013413,2]
[419727750,1775341833248,-500.0,0.00013413,2]
[419727751,1775341833258,-196.83522302,0.00013413,2]
[419727752,1775341833267,-853.0,0.00013413,2]
[419727753,1775341833276,-672.0,0.00013413,2]
[419727754,1775341833286,-672.0,0.00013413,2]
[419727755,1775341833295,-672.0,0.00013413,2]
[419727756,1775341833304,-672.0,0.00013413,2]
[419727757,1775341833313,-672.0,0.00013413,2]
[419727758,1775341833323,-672.0,0.00013413,2]
[419727759,1775341833332,-672.0,0.00013413,2]
[419727760,1775341833342,-672.0,0.00013413,2]
[419727761,1775341833351,-672.0,0.00013413,2]
[419727762,1775341833360,-672.0,0.00013413,2]
[419727763,1775341833370,-672.0,0.00013413,2]
[419727764,1775341833379,-672.0,0.00013413,2]
[419727765,1775341833389,-672.0,0.00013413,2]
[419727766,1775341833399,-672.0,0.00013413,2]
[419727767,1775341833408,-672.0,0.00013413,2]
[419727768,1775341833418,-672.0,0.00013413,2]
[419727769,1775341833427,-672.0,0.00013413,2]
[419727770,1775341833437,-672.0,0.00013413,2]
[419727771,1775341833446,-672.0,0.00013413,2]
[419727772,1775341833456,-672.0,0.00013413,2]
[419727773,1775341833466,-672.0,0.00013413,2]
[419727774,1775341833475,-672.0,0.00013413,2]
[419727775,1775341833484,-672.0,0.00013413,2]
[419727776,1775341833494,-692.53940565,0.00013413,2]
[419727777,1775341833503,-150.0,0.00013413,2]
[419727778,1775341833512,-150.0,0.00013413,2]
[419727779,1775341833522,-150.0,0.00013413,2]
[419727780,1775341833531,-216.19443643,0.00013413,2]
[419727781,1775341833540,-723102.62604912,0.00013414,2]
[419727782,1775341833555,-10605.63228918,0.00013414,2]
[419727783,1775341833567,-25167.52536094,0.00013414,2]
[419727784,1775341833621,-626.74843471,0.00013414,2]
[419727790,1775341838216,-247.6225847,0.00013413,2]
[419727791,1775341838226,-222.01694741,0.00013414,2]
[419727794,1775341838266,-1064.92861,0.00013414,2]
[419727796,1775341838298,-1076737.90550864,0.00013414,2]
[419727798,1775341838308,-1500000.0,0.00013414,2]
[419727799,1775341838317,-24984.01404667,0.0001347,2]
[419727800,1775341838326,-500.0,0.00013473,2]
[419727801,1775341838336,-500.0,0.00013473,2]
[419727802,1775341838345,-500.0,0.00013473,2]
[419727803,1775341838355,-500.0,0.00013473,2]
[419727804,1775341838364,-500.0,0.00013473,2]
[419727805,1775341838373,-159.94420326,0.00013473,2]
[419727806,1775341838383,-500.0,0.00013473,2]
[419727807,1775341838392,-500.0,0.00013473,2]
[419727808,1775341838401,-500.0,0.00013473,2]
[419727809,1775341838411,-500.0,0.00013473,2]
[419727810,1775341838420,-500.0,0.00013473,2]
[419727811,1775341838430,-220.78759916,0.00013473,2]
[419727812,1775341838440,-500.0,0.00013473,2]
[419727813,1775341838450,-1104.9004975,0.0001355,2]
[419727814,1775341838459,-972.1669752,0.0001355,2]
[419727815,1775341838469,-13444.9747585,0.0001355,2]
[419727816,1775341838478,-170.6763195,0.0001355,2]
[419727817,1775341838487,-36824.60995708,0.00013593,2]
[419727818,1775341838497,-200.0,0.00013598,2]
[419727819,1775341838507,-500.0,0.00013598,2]
[419727820,1775341838516,-1000.0,0.00013598,2]
[419727821,1775341838525,-1000.0,0.00013598,2]
[419727822,1775341838535,-1000.0,0.00013598,2]
[419727823,1775341838544,-33029.0565,0.00013598,2]
[419727824,1775341838554,-532.9299,0.00013598,2]
[419727825,1775341838564,-7683.41588999,0.00013683,2]
[419727826,1775341838573,-853.0,0.00013687,2]
[419727827,1775341838583,-500.0,0.00013698,2]
[419727828,1775341838593,-500.0,0.00013698,2]
[419727829,1775341838602,-500.0,0.00013698,2]
[419727830,1775341838612,-500.0,0.00013698,2]
[419727831,1775341838622,-500.0,0.00013698,2]
[419727832,1775341838631,-500.0,0.00013698,2]
[419727833,1775341838640,-500.0,0.00013698,2]
[419727834,1775341838650,-500.0,0.00013698,2]
[419727835,1775341838659,-500.0,0.00013698,2]
[419727836,1775341838669,-500.0,0.00013698,2]
[419727837,1775341838678,-500.0,0.00013698,2]
[419727838,1775341838688,-500.0,0.00013698,2]
[419727839,1775341838697,-500.0,0.00013698,2]
[419727840,1775341838706,-500.0,0.00013698,2]
[419727841,1775341838715,-500.0,0.00013698,2]
[419727842,1775341838725,-500.0,0.00013698,2]
[419727843,1775341838734,-500.0,0.00013698,2]
[419727844,1775341838743,-500.0,0.00013698,2]
[419727845,1775341838753,-345.55618054,0.00013698,2]
[419727846,1775341838763,-500.0,0.00013698,2]
[419727847,1775341838773,-500.0,0.00013698,2]
[419727848,1775341838782,-500.0,0.00013698,2]
[419727849,1775341838791,-507.27121127,0.00013698,2]
[419727850,1775341838800,-614.91,0.00013698,2]
[419727851,1775341838810,-614.91,0.00013698,2]
[419727852,1775341838819,-614.91,0.00013698,2]
[419727853,1775341838829,-614.91,0.00013698,2]
[419727854,1775341838839,-614.91,0.00013698,2]
[419727855,1775341838848,-614.91,0.00013698,2]
[419727856,1775341838857,-614.91,0.00013698,2]
[419727857,1775341838866,-614.91,0.00013698,2]
[419727858,1775341838876,-614.91,0.00013698,2]
[419727859,1775341838884,-614.91,0.00013698,2]
[419727860,1775341838893,-614.91,0.00013698,2]
[419727861,1775341838903,-614.91,0.00013698,2]
[419727862,1775341838912,-614.91,0.00013698,2]
[419727863,1775341838922,-614.91,0.00013698,2]
[419727864,1775341838931,-614.91,0.00013698,2]
[419727865,1775341838940,-500.0,0.00013698,2]
[419727866,1775341838949,-500.0,0.00013698,2]
[419727867,1775341838958,-500.0,0.00013698,2]
[419727868,1775341838968,-500.0,0.00013698,2]
[419727869,1775341838977,-500.0,0.00013698,2]
[419727870,1775341838986,-500.0,0.00013698,2]
[419727871,1775341838995,-500.0,0.00013698,2]
[419727872,1775341839004,-500.0,0.00013698,2]
[419727873,1775341839013,-500.0,0.00013698,2]
[419727874,1775341839022,-500.0,0.00013698,2]
[419727875,1775341839031,-500.0,0.00013698,2]
[419727876,1775341839040,-500.0,0.00013698,2]
[419727877,1775341839051,-500.0,0.00013698,2]
[419727878,1775341839060,-500.0,0.00013698,2]
[419727879,1775341839069,-500.0,0.00013698,2]
[419727880,1775341839079,-500.0,0.00013698,2]
[419727881,1775341839089,-500.0,0.00013698,2]
[419727882,1775341839098,-500.0,0.00013698,2]
[419727883,1775341839107,-500.0,0.00013698,2]
[419727884,1775341839117,-500.0,0.00013698,2]
[419727885,1775341839126,-500.0,0.00013698,2]
[419727886,1775341839136,-532.19,0.00013698,2]
[419727887,1775341839146,-532.19,0.00013698,2]
[419727888,1775341839155,-532.19,0.00013698,2]
[419727889,1775341839165,-532.19,0.00013698,2]
[419727890,1775341839175,-532.19,0.00013698,2]
[419727891,1775341839184,-532.19,0.00013698,2]
[419727892,1775341839193,-532.19,0.00013698,2]
[419727893,1775341839202,-532.19,0.00013698,2]
[419727894,1775341839212,-532.19,0.00013698,2]
[419727895,1775341839221,-532.19,0.00013698,2]
[419727896,1775341839231,-532.19,0.00013698,2]
[419727897,1775341839241,-532.19,0.00013698,2]
[419727898,1775341839251,-532.19,0.00013698,2]
[419727899,1775341839260,-532.19,0.00013698,2]
[419727900,1775341839269,-532.19,0.00013698,2]
[419727901,1775341839278,-532.19,0.00013698,2]
[419727902,1775341839288,-532.19,0.00013698,2]
[419727903,1775341839298,-500.0,0.00013698,2]
[419727904,1775341839307,-500.0,0.00013698,2]
[419727905,1775341839317,-540.38303843,0.00013698,2]
[419727906,1775341839327,-500.0,0.00013698,2]
[419727907,1775341839336,-544.75,0.00013698,2]
[419727908,1775341839346,-500.0,0.00013698,2]
[419727909,1775341839355,-500.0,0.00013698,2]
[419727910,1775341839364,-500.0,0.00013698,2]
[419727911,1775341839374,-500.0,0.00013698,2]
[419727912,1775341839383,-500.0,0.00013698,2]
[419727913,1775341839393,-500.0,0.00013698,2]
[419727914,1775341839403,-500.0,0.00013698,2]
[419727915,1775341839412,-500.0,0.00013698,2]
[419727916,1775341839421,-500.0,0.00013698,2]
[419727917,1775341839431,-500.0,0.00013698,2]
[419727918,1775341839441,-500.0,0.00013698,2]
[419727919,1775341839451,-500.0,0.00013698,2]
[419727920,1775341839461,-500.0,0.00013698,2]
[419727921,1775341839471,-500.0,0.00013698,2]
[419727922,1775341839481,-228.76814826,0.00013698,2]
[419727923,1775341839490,-500.0,0.00013698,2]
[419727924,1775341839499,-500.0,0.00013698,2]
[419727925,1775341839509,-500.0,0.00013698,2]
[419727926,1775341839518,-500.0,0.00013698,2]
[419727927,1775341839528,-500.0,0.00013698,2]
[419727928,1775341839538,-500.0,0.00013698,2]
[419727929,1775341839548,-500.0,0.00013698,2]
[419727930,1775341839558,-500.0,0.00013698,2]
[419727931,1775341839567,-500.0,0.00013698,2]
[419727932,1775341839576,-500.0,0.00013698,2]
[419727933,1775341839586,-500.0,0.00013698,2]
[419727934,1775341839596,-500.0,0.00013698,2]
[419727935,1775341839605,-500.0,0.00013698,2]
[419727936,1775341839614,-500.0,0.00013698,2]
[419727937,1775341839624,-500.0,0.00013698,2]
[419727938,1775341839633,-500.0,0.00013698,2]
[419727939,1775341839642,-500.0,0.00013698,2]
[419727940,1775341839651,-500.0,0.00013698,2]
[419727941,1775341839661,-500.0,0.00013698,2]
[419727942,1775341839670,-500.0,0.00013698,2]
[419727943,1775341839679,-702.94,0.00013698,2]
[419727944,1775341839688,-516.13405438,0.00013698,2]
[419727945,1775341839698,-150.0,0.00013699,2]
[419727946,1775341839707,-150.0,0.00013699,2]
[419727947,1775341839717,-150.0,0.00013699,2]
[419727948,1775341839726,-150.0,0.00013699,2]
[419727949,1775341839735,-150.0,0.00013699,2]
[419727950,1775341839744,-200.0,0.00013699,2]
[419727951,1775341839754,-4633.08,0.00013699,2]
[419727952,1775341839763,-158.14,0.00013699,2]
[419727953,1775341839772,-382.84501778,0.00013699,2]
[419727954,1775341839781,-200.0,0.00013734,2]
[419727955,1775341839790,-200.0,0.00013871,2]
[419727956,1775341839799,-36824.60995708,0.00013882,2]
[419727957,1775341839808,-614.91,0.00013888,2]
[419727958,1775341839817,-500.0,0.00013888,2]
[419727959,1775341839826,-500.0,0.00013888,2]
[419727960,1775341839836,-184.009804,0.00013892,2]
[419727961,1775341839845,-1110.449581,0.00013892,2]
[419727962,1775341839854,-292.455941,0.00013892,2]
[419727963,1775341839865,-1170.734574,0.00013892,2]
[419727964,1775341839874,-200.0,0.000139,2]
[419727965,1775341839883,-200.0,0.000139,3]
[419727966,1775341839892,-200.0,0.000139,3]
[419727967,1775341839902,-4100.0,0.000139,5]
[419727968,1775341839911,-1600.0,0.000139,5]
[419727969,1775341839921,-853.0,0.00013961,2]
[419727970,1775341839930,-150.0,0.00013973,2]
[419727971,1775341839940,-150.0,0.00013973,2]
[419727972,1775341839949,-150.0,0.00013973,2]
[419727973,1775341839959,-150.0,0.00013973,2]
[419727974,1775341839968,-3292.0,0.00013974,2]
[419727975,1775341839977,-260.28,0.00013981,2]
[419727976,1775341839987,-532.19,0.00013995,2]
[419727977,1775341839997,-2000.0,0.00014002,2]
[419727979,1775341840006,-1807.96907093,0.00014006,2]
[419727981,1775341840015,-200.0,0.0001401,2]
[419727982,1775341840026,-602.78280616,0.00014021,2]
[419727983,1775341840035,-1000.0,0.00014021,2]
[419727984,1775341840045,-1000.0,0.00014021,2]
[419727985,1775341840054,-1000.0,0.00014021,2]
[419727986,1775341840063,-1000.0,0.00014021,2]
[419727987,1775341840073,-1000.0,0.00014021,2]
[419727988,1775341840084,-1000.0,0.00014021,2]
[419727989,1775341840093,-1000.0,0.00014021,2]
[419727990,1775341840103,-1000.0,0.00014021,2]
[419727991,1775341840113,-2483.79574739,0.00014053,2]
[419727992,1775341840143,-2112.95628529,0.00014053,2]
[419727993,1775341840723,-1657.00582136,0.00014053,2]
[419727994,1775341840735,-1429.65803595,0.00014053,2]
[419727995,1775341840744,-584.197781,0.00014142,2]
[419727996,1775341840754,-36824.60995708,0.0001417,2]
[419727997,1775341840763,-160.73725741,0.00014194,2]
[419727998,1775341840773,-205.48,0.00014215,2]
[419727999,1775341840782,-853.0,0.00014235,2]
[419728000,1775341840791,-155.0,0.00014246,2]
[419728001,1775341840801,-150.0,0.00014247,2]
[419728002,1775341840810,-150.0,0.00014247,2]
[419728003,1775341840819,-150.0,0.00014247,2]
[419728004,1775341840829,-150.0,0.00014247,2]
[419728005,1775341840839,-1060.4356,0.00014359,2]
[419728006,1775341840849,-4633.08,0.00014384,2]
[419728007,1775341840858,-150.0,0.000144,2]
[419728008,1775341840868,-200.67348083,0.000144,2]
[419728009,1775341840877,-150.0,0.000144,2]
[419728010,1775341840887,-150.0,0.000144,2]
[419728011,1775341840896,-150.0,0.000144,2]
[419728012,1775341840906,-150.0,0.000144,2]
[419728013,1775341840915,-150.0,0.000144,2]
[419728014,1775341840924,-150.0,0.000144,2]
[419728015,1775341840934,-150.0,0.000144,2]
[419728016,1775341840943,-150.0,0.000144,2]
[419728017,1775341840953,-150.0,0.000144,2]
[419728018,1775341840961,-150.0,0.000144,2]
[419728019,1775341840971,-150.0,0.000144,2]
[419728020,1775341840980,-150.0,0.00014419,2]
[419728021,1775341840990,-7683.41588999,0.00014422,2]
[419728022,1775341840999,-150.0,0.00014424,2]
[419728023,1775341841009,-150.0,0.00014424,2]
[419728024,1775341841018,-150.0,0.00014425,2]
[419728025,1775341841027,-420.07,0.00014429,2]
[419728026,1775341841037,-900.0,0.0001443,2]
[419728027,1775341841046,-900.0,0.0001443,2]
[419728029,1775341841056,-900.0,0.0001443,2]
[419728030,1775341841066,-900.0,0.0001443,2]
[419728031,1775341841075,-900.0,0.0001443,2]
[419728032,1775341841086,-900.0,0.0001443,2]
[419728033,1775341841096,-900.0,0.0001443,2]
[419728034,1775341841106,-900.0,0.0001443,2]
[419728035,1775341841120,-900.0,0.0001443,2]
[419728037,1775341841129,-771.0,0.0001443,2]
[419728039,1775341841139,-150.0,0.00014433,2]
[419728040,1775341841148,-150.0,0.00014433,2]
[419728041,1775341841157,-186.67,0.00014435,2]
[419728042,1775341841166,-150.0,0.00014439,2]
[419728043,1775341841175,-150.0,0.00014448,2]
[419728044,1775341841184,-150.0,0.00014448,2]
[419728045,1775341841193,-150.0,0.00014449,2]
[419728046,1775341841203,-1950.0,0.0001445,2]
[419728047,1775341841213,-1950.0,0.0001445,2]
[419728048,1775341841222,-1950.0,0.0001445,2]
[419728049,1775341841231,-1950.0,0.0001445,2]
[419728050,1775341841239,-1950.0,0.0001445,2]
[419728051,1775341841248,-1950.0,0.0001445,2]
[419728052,1775341841258,-1950.0,0.0001445,2]
[419728053,1775341841267,-1950.0,0.0001445,2]
[419728054,1775341841277,-1950.0,0.0001445,2]
[419728055,1775341841286,-1931.0,0.0001445,2]
[419728056,1775341841295,-150.0,0.00014458,2]
[419728057,1775341841305,-36824.60995708,0.00014458,2]
[419728058,1775341841315,-150.0,0.00014459,2]
[419728059,1775341841324,-150.0,0.00014462,2]
[419728060,1775341841333,-150.0,0.00014467,2]
[419728061,1775341841343,-150.0,0.00014467,2]
[419728062,1775341841352,-150.0,0.00014472,2]
[419728063,1775341841599,-150.0,0.00014473,2]
[419728064,1775341841609,-150.0,0.00014474,2]
[419728065,1775341841618,-150.0,0.00014477,2]
[419728066,1775341841627,-1950.0,0.00014482,2]
[419728067,1775341841636,-1950.0,0.00014482,2]
[419728068,1775341841646,-1950.0,0.00014482,2]
[419728069,1775341841655,-1950.0,0.00014482,2]
[419728070,1775341841664,-1950.0,0.00014482,2]
[419728071,1775341841673,-1950.0,0.00014482,2]
[419728072,1775341841682,-1950.0,0.00014482,2]
[419728073,1775341841691,-1950.0,0.00014482,2]
[419728074,1775341841700,-1950.0,0.00014482,2]
[419728075,1775341841710,-1631.0,0.00014482,2]
[419728076,1775341841719,-150.0,0.00014496,2]
[419728077,1775341841728,-150.0,0.00014496,2]
[419728078,1775341841738,-150.0,0.00014497,2]
[419728079,1775341841747,-150.0,0.00014498,2]
[419728080,1775341841756,-150.0,0.000145,2]
[419728081,1775341841765,-150.0,0.000145,2]
[419728082,1775341841774,-155.65,0.00014506,2]
[419728083,1775341841784,-150.0,0.00014507,2]
[419728084,1775341841793,-853.0,0.00014509,2]
[419728085,1775341841802,-150.0,0.00014516,2]
[419728086,1775341841812,-150.0,0.00014519,2]